bitfinex-derivatives/quotes_BTCF0:USTF0_20251011
["timestamp","ask_amount","ask_price","bid_price","bid_amount"]
[1760214742306,1.03230189,110440.0,110430.0,0.23]
[1760214743407,1.03230189,110440.0,110430.0,0.231]
[1760214743604,0.4512539,110440.0,110430.0,0.231]
[1760214743911,0.4512539,110440.0,110430.0,0.232]
[1760214744113,1.03230189,110440.0,110430.0,0.232]
[1760214744309,1.44180189,110440.0,110430.0,0.232]
[1760214744713,1.46628682,110440.0,110430.0,0.042]
[1760214745006,1.48926682,110440.0,110430.0,0.042]
[1760214745512,1.58918531,110440.0,110430.0,0.00173538]
[1760214745812,1.00813732,110440.0,110430.0,0.00173538]
[1760214746008,1.58918531,110440.0,110430.0,0.00173538]
[1760214746212,0.49871883,110440.0,110430.0,0.15173538]
[1760214746402,0.4742339,110440.0,110430.0,0.16545]
[1760214746603,0.4742339,110440.0,110430.0,0.18805]
[1760214747005,0.4742339,110440.0,110430.0,0.18705]
[1760214747213,0.4742339,110440.0,110430.0,0.15]
[1760214747417,0.4742339,110440.0,110430.0,0.1726]
[1760214747606,0.4742339,110440.0,110430.0,0.15]
[1760214747806,0.3608,110440.0,110430.0,0.58705]
[1760214748007,0.3608,110440.0,110430.0,0.5108]
[1760214748008,0.0904539,110440.0,110430.0,0.5108]
[1760214748210,1.46485189,110440.0,110430.0,0.15]
[1760214748509,0.1171021,110430.0,110420.0,0.00010448]
[1760214748714,0.4742421,110430.0,110420.0,0.10010448]
[1760214749109,1.05529009,110430.0,110420.0,0.10010448]
[1760214749303,1.12840706,110430.0,110420.0,0.13715448]
[1760214749505,1.12840706,110430.0,110420.0,0.10010448]
[1760214750111,1.12840706,110430.0,110420.0,0.13715448]
[1760214750811,0.0095,110410.0,110400.0,0.03]
[1760214751013,0.96482799,110410.0,110400.0,0.26705]
[1760214751308,0.94184799,110420.0,110400.0,0.26705]
[1760214751513,0.3608,110420.0,110400.0,0.62785]
[1760214751714,0.4512703,110420.0,110410.0,0.03802]
[1760214751912,0.4758303,110420.0,110410.0,0.28802]
[1760214752114,0.36089769,110420.0,110410.0,0.28802]
[1760214752309,0.47592799,110420.0,110410.0,0.28802]
[1760214753216,0.47592799,110420.0,110410.0,0.25]
[1760214753411,1.05697598,110420.0,110410.0,0.25]
[1760214753818,0.47592799,110420.0,110410.0,0.28802]
[1760214754014,1.05697598,110420.0,110410.0,0.28802]
[1760214754815,0.47592799,110420.0,110410.0,0.28802]
[1760214755017,1.05697598,110420.0,110410.0,0.28802]
[1760214755211,0.47592799,110420.0,110410.0,0.28802]
[1760214755611,0.45136799,110420.0,110410.0,0.28802]
[1760214755814,9.769e-05,110420.0,110410.0,0.68802]
[1760214756015,9.769e-05,110420.0,110410.0,1.72034649]
[1760214756420,9.769e-05,110420.0,110410.0,1.04882]
[1760214756616,9.769e-05,110420.0,110410.0,0.28802]
[1760214756817,9.769e-05,110420.0,110410.0,1.72034639]
[1760214757322,9.769e-05,110420.0,110410.0,1.1392984]
[1760214758414,9.769e-05,110420.0,110410.0,1.72034639]
[1760214758622,0.3608,110440.0,110430.0,0.01371]
[1760214758924,0.3608,110440.0,110430.0,0.3584821]
[1760214759119,1.05685519,110450.0,110440.0,0.03802]
[1760214759427,0.4758072,110450.0,110440.0,0.25802]
[1760214759919,0.4758072,110450.0,110440.0,0.22]
[1760214760123,0.99504225,110450.0,110440.0,0.25802]
[1760214760420,0.4768057,110450.0,110440.0,0.25802]
[1760214760723,0.4768057,110450.0,110440.0,0.22]
[1760214760915,1.00730075,110450.0,110440.0,0.22]
[1760214761121,0.1150139,110440.0,110430.0,0.01371]
[1760214761321,0.1150139,110440.0,110430.0,0.29802]
[1760214761619,0.4758139,110440.0,110430.0,0.26]
[1760214761818,0.99504895,110440.0,110430.0,0.26]
[1760214762026,0.4758139,110440.0,110430.0,0.28431]
[1760214762321,0.4758139,110440.0,110430.0,0.26]
[1760214762516,0.8863839,110440.0,110430.0,0.26]
[1760214762719,0.1150303,110420.0,110410.0,0.03802]
[1760214763024,0.4758303,110420.0,110410.0,0.26802]
[1760214764028,0.38536,110420.0,110410.0,0.26802]
[1760214764320,0.4758303,110420.0,110410.0,0.26802]
[1760214765618,0.3608,110420.0,110410.0,0.3584985]
[1760214765813,0.001,110420.0,110410.0,0.26802]
[1760214766018,0.002,110420.0,110410.0,0.62882]
[1760214766220,0.001,110420.0,110410.0,0.62882]
[1760214766418,0.002,110420.0,110410.0,1.1192985]
[1760214766725,0.001,110420.0,110410.0,1.1192985]
[1760214766923,0.3608,110440.0,110430.0,0.0146]
[1760214767223,0.4755503,110450.0,110440.0,0.03886]
[1760214767526,0.49968294,110450.0,110440.0,0.28886]
[1760214767713,0.49968294,110450.0,110440.0,0.2646]
[1760214767915,0.0904621,110430.0,110420.0,0.46966]
[1760214768125,0.4755572,110440.0,110430.0,0.03886]
[1760214768326,0.38494898,110440.0,110430.0,0.7593221]
[1760214768617,0.3608,110450.0,110440.0,0.1293139]
[1760214768821,0.3608,110490.0,110480.0,0.1050211]
[1760214769021,0.02416254,110490.0,110480.0,1.22505615]
[1760214769214,0.4511922,110520.0,110500.0,0.0146]
[1760214769413,0.38494496,110520.0,110510.0,0.0146]
[1760214769618,0.45778554,110520.0,110510.0,0.23]
[1760214769821,0.38494496,110520.0,110510.0,0.23]
[1760214770215,0.3608,110520.0,110510.0,0.23]
[1760214770421,0.4511884,110520.0,110510.0,0.23]
[1760214770820,0.4531884,110520.0,110510.0,0.23]
[1760214771120,0.4678184,110520.0,110510.0,0.23]
[1760214771623,0.4698184,110520.0,110510.0,0.23]
[1760214771819,0.3648,110520.0,110510.0,0.23]
[1760214772022,0.4531884,110520.0,110510.0,0.23]
[1760214772219,0.4698184,110520.0,110510.0,0.23]
[1760214772821,0.8698184,110520.0,110510.0,0.23]
[1760214774127,0.8698184,110520.0,110510.0,0.2446]
[1760214774128,0.3648,110520.0,110510.0,0.2446]
[1760214774531,0.3648,110520.0,110510.0,0.7349966]
[1760214774719,0.004,110520.0,110510.0,1.25423165]
[1760214774924,0.004,110520.0,110510.0,1.61503165]
[1760214775324,0.3608,110550.0,110540.0,0.02426]
[1760214775525,0.3851,110550.0,110540.0,0.25886]
[1760214775727,0.3608,110550.0,110540.0,0.349232]
[1760214775927,0.3608,110550.0,110540.0,0.25886]
[1760214776323,0.4754639,110550.0,110540.0,0.22]
[1760214776523,0.3638,110550.0,110540.0,0.749232]
[1760214776724,0.3668,110550.0,110540.0,0.65886]
[1760214777125,0.1206639,110550.0,110540.0,0.24426]
[1760214777431,0.4960939,110550.0,110540.0,0.22]
[1760214777632,0.4960939,110550.0,110540.0,0.24426]
[1760214777828,0.0303,110550.0,110540.0,0.25886]
[1760214778031,0.4814639,110550.0,110540.0,0.24426]
[1760214778529,0.4960939,110550.0,110540.0,0.22]
[1760214779131,0.8960939,110550.0,110540.0,0.22]
[1760214779536,1.41532895,110550.0,110540.0,0.22]
[1760214779928,0.1293102,110530.0,110520.0,0.12]
[1760214780128,0.1293266,110510.0,110500.0,0.3808]
[1760214780336,0.1146966,110510.0,110500.0,0.61506]
[1760214780638,0.1293266,110510.0,110500.0,0.23]
[1760214780833,0.8901266,110510.0,110500.0,0.23]
[1760214781037,1.38506165,110510.0,110500.0,0.23]
[1760214781535,0.4658266,110510.0,110500.0,0.23]
[1760214781734,0.4668266,110510.0,110500.0,0.23]
[1760214782134,0.4688266,110510.0,110500.0,0.23]
[1760214782432,0.3638,110510.0,110500.0,0.23]
[1760214782837,0.003,110510.0,110500.0,0.6944648]
[1760214783037,0.0933966,110510.0,110500.0,0.23]
[1760214783335,0.4677066,110510.0,110500.0,0.23]
[1760214783537,0.3638,110510.0,110500.0,0.24326]
[1760214783733,0.3638,110510.0,110500.0,0.23]
[1760214783930,0.4677066,110510.0,110500.0,0.23]
[1760214784327,0.8677066,110510.0,110500.0,0.23]
[1760214784738,0.8916366,110510.0,110500.0,0.25336]
[1760214785233,0.0904129,110490.0,110480.0,0.3608]
[1760214785442,0.1143593,110470.0,110460.0,0.20336]
[1760214785647,0.0904293,110470.0,110460.0,0.25]
[1760214785933,1.38397435,110470.0,110460.0,0.25]
[1760214786336,0.8647393,110470.0,110460.0,0.25]
[1760214786641,1.38397435,110470.0,110460.0,0.25]
[1760214786834,0.8647393,110470.0,110460.0,0.25]
[1760214787036,1.38397435,110470.0,110460.0,0.25]
[1760214787236,0.8647393,110470.0,110460.0,0.25]
[1760214787736,0.53618041,110470.0,110460.0,0.25]
[1760214788440,0.3608,110470.0,110460.0,0.25]
[1760214788642,0.3608,110480.0,110470.0,0.1036893]
[1760214788831,0.4512137,110490.0,110470.0,0.3636893]
[1760214789142,0.3608,110490.0,110470.0,0.3636893]
[1760214789337,0.3608,110500.0,110480.0,0.4644755]
[1760214789541,0.3608,110500.0,110490.0,0.01326]
[1760214789838,0.3608,110540.0,110520.0,0.0903829]
[1760214790036,0.37431,110550.0,110530.0,0.51923505]
[1760214790243,0.01351,110540.0,110530.0,0.23]
[1760214790540,0.103882,110540.0,110530.0,0.23]
[1760214790939,0.37431,110550.0,110530.0,0.63]
[1760214791240,0.37431,110550.0,110530.0,0.74923505]
[1760214791540,0.37431,110560.0,110540.0,0.97040705]
[1760214791740,0.01351,110560.0,110550.0,0.0903639]
[1760214791941,0.01351,110560.0,110550.0,0.5908]
[1760214793043,0.01651,110560.0,110550.0,0.5908]
[1760214793746,0.01651,110560.0,110550.0,0.23]
[1760214793943,0.01651,110560.0,110550.0,0.5908]
[1760214794140,0.01651,110560.0,110550.0,0.23]
[1760214794346,0.01951,110560.0,110550.0,0.23]
[1760214794648,0.1098657,110560.0,110550.0,0.23]
[1760214794940,1.38990075,110560.0,110550.0,0.23]
[1760214795142,0.8706657,110560.0,110550.0,0.23]
[1760214795352,0.4706657,110560.0,110550.0,0.23]
[1760214795643,0.8706657,110560.0,110550.0,0.23]
[1760214795844,0.01951,110560.0,110550.0,0.23]
[1760214796047,0.01951,110560.0,110550.0,0.5908]
[1760214796943,0.01951,110560.0,110550.0,0.23]
[1760214797341,0.006,110560.0,110550.0,0.6811639]
[1760214797540,0.01951,110560.0,110550.0,0.5908]
[1760214797846,0.1098657,110560.0,110550.0,0.23]
[1760214798254,0.01951,110560.0,110550.0,0.23]
[1760214798441,0.01951,110560.0,110550.0,0.3203639]
[1760214798646,0.1098657,110560.0,110550.0,0.5908]
[1760214798943,0.4706657,110560.0,110550.0,0.23]
[1760214799143,0.8706657,110560.0,110550.0,0.23]
[1760214799640,1.4137622,110560.0,110550.0,0.23]
[1760214799848,0.01351,110530.0,110520.0,0.3608]
[1760214800148,0.01351,110530.0,110520.0,0.5908]
[1760214800347,0.1038903,110530.0,110520.0,0.5908]
[1760214801044,0.002,110530.0,110520.0,1.51003505]
[1760214801252,0.002,110530.0,110520.0,1.60042355]
[1760214801548,0.01551,110530.0,110520.0,0.5908]
[1760214801851,0.1078903,110530.0,110520.0,0.5908]
[1760214802244,0.18036999,110530.0,110520.0,0.23]
[1760214802447,0.08998969,110530.0,110520.0,0.23]
[1760214802745,0.18036989,110530.0,110520.0,0.23]
[1760214803847,0.95013151,110530.0,110520.0,0.23]
[1760214804050,0.1039066,110510.0,110500.0,0.05]
[1760214804255,0.01351,110510.0,110500.0,0.26]
[1760214804453,0.1039066,110510.0,110500.0,0.26]
[1760214804851,0.01351,110510.0,110500.0,0.6208]
[1760214805155,0.1039066,110510.0,110500.0,0.6208]
[1760214805355,0.1059066,110510.0,110500.0,0.6208]
[1760214805552,0.1069066,110510.0,110500.0,0.6208]
[1760214805750,0.003,110510.0,110500.0,1.23043985]
[1760214805956,0.003,110510.0,110500.0,1.63043985]
[1760214806559,0.003,110510.0,110500.0,1.54003505]
[1760214807045,0.003,110510.0,110500.0,1.63043985]
[1760214807646,0.1069066,110510.0,110500.0,1.0208]
[1760214807853,0.1069066,110510.0,110500.0,0.6208]
[1760214808051,0.003,110510.0,110500.0,1.0208]
[1760214808252,0.003,110510.0,110500.0,1.1112048]
[1760214808452,0.0933966,110510.0,110500.0,1.63043985]
[1760214808959,0.003,110510.0,110500.0,1.63043985]
[1760214809253,0.0933966,110510.0,110500.0,1.63043985]
[1760214809454,0.0933966,110510.0,110500.0,0.6208]
[1760214809455,0.1069066,110510.0,110500.0,0.6208]
[1760214809849,0.1069066,110510.0,110500.0,0.62482]
[1760214810854,0.003,110510.0,110500.0,1.63445985]
[1760214811250,0.0933966,110510.0,110500.0,1.63445985]
[1760214811763,0.1069566,110510.0,110500.0,1.14405505]
[1760214811961,0.1315566,110510.0,110500.0,0.62482]
[1760214812155,0.1315566,110510.0,110500.0,0.6208]
[1760214812357,0.4923566,110510.0,110500.0,0.26]
[1760214813563,1.41159165,110510.0,110500.0,0.26]
[1760214814951,1.41159165,110510.0,110480.0,0.4308]
[1760214815160,0.1285811,110480.0,110460.0,0.7108]
[1760214815463,0.03816,110470.0,110460.0,0.58736]
[1760214816663,0.1285893,110470.0,110460.0,0.58736]
[1760214817161,0.01356,110480.0,110460.0,0.6777975]
[1760214817562,0.03816,110470.0,110460.0,0.58736]
[1760214817762,0.01356,110470.0,110460.0,0.58736]
[1760214817962,0.01356,110470.0,110460.0,0.6777975]
[1760214818161,0.01356,110480.0,110460.0,1.0777975]
[1760214818461,0.01356,110480.0,110470.0,0.00656]
[1760214818662,0.1285811,110480.0,110470.0,0.22656]
[1760214818864,0.1285811,110480.0,110470.0,0.22]
[1760214819266,0.5611702,110480.0,110470.0,0.22656]
[1760214819660,0.2003702,110480.0,110470.0,0.22656]
[1760214820062,0.1099491,110480.0,110470.0,0.22656]
[1760214820260,0.5611703,110480.0,110470.0,0.22]
[1760214820561,0.9611703,110480.0,110470.0,0.22]
[1760214820767,1.48040535,110480.0,110470.0,0.22]
[1760214821362,0.1285975,110460.0,110450.0,0.09]
[1760214821563,0.70923467,110460.0,110450.0,0.24]
[1760214822160,0.1285975,110460.0,110450.0,0.24]
[1760214822563,0.70923467,110460.0,110450.0,0.24]
[1760214822758,1.07003467,110460.0,110450.0,0.24]
[1760214823563,1.47003467,110460.0,110450.0,0.24]
[1760214825671,0.8893975,110460.0,110450.0,0.24]
[1760214825963,1.47003467,110460.0,110450.0,0.24]
[1760214828871,1.07003467,110460.0,110450.0,0.24]
[1760214829465,1.47003467,110460.0,110450.0,0.24]
[1760214830868,0.4893975,110460.0,110450.0,0.24]
[1760214831073,0.4893975,110460.0,110450.0,0.24594]
[1760214831469,0.03816,110460.0,110450.0,0.24594]
[1760214831771,0.1285975,110460.0,110450.0,0.24594]
[1760214831972,0.1285975,110460.0,110450.0,0.64594]
[1760214832172,0.01356,110460.0,110450.0,1.67782287]
[1760214833278,0.1278075,110460.0,110450.0,0.60674]
[1760214833680,0.1278075,110460.0,110450.0,0.24594]
[1760214833872,0.4886075,110460.0,110450.0,0.24594]
[1760214834176,0.1278075,110460.0,110450.0,0.24594]
[1760214834567,0.1278075,110460.0,110450.0,0.24]
[1760214834568,1.06924467,110460.0,110450.0,0.24]
[1760214835370,1.46924467,110460.0,110450.0,0.24]
[1760214835777,0.8886075,110460.0,110450.0,0.24]
[1760214836279,1.46924467,110460.0,110450.0,0.24]
[1760214836970,1.46924467,110460.0,110440.0,8.709e-05]
[1760214836971,0.1052257,110450.0,110440.0,8.709e-05]
[1760214837177,1.49411622,110450.0,110440.0,0.15008709]
[1760214837380,1.49411622,110450.0,110410.0,0.3608]
[1760214837381,0.03859,110430.0,110410.0,0.3608]
[1760214837576,0.70969737,110420.0,110410.0,0.5908]
[1760214837880,0.1290602,110420.0,110410.0,0.59674]
[1760214838083,0.01478,110420.0,110410.0,0.59674]
[1760214838282,0.03770414,110420.0,110410.0,0.59674]
[1760214838581,0.00011414,110420.0,110410.0,1.66785557]
[1760214838976,0.00011414,110420.0,110410.0,1.66885557]
[1760214839183,0.01389414,110430.0,110420.0,0.0994302]
[1760214839376,0.01389414,110430.0,110420.0,0.81959717]
[1760214839681,0.03770414,110430.0,110420.0,0.81959717]
[1760214840070,0.01389414,110430.0,110420.0,0.6902303]
[1760214840776,0.70880341,110430.0,110420.0,0.23]
[1760214840980,1.09372313,110430.0,110420.0,0.23]
[1760214841181,1.49372313,110430.0,110420.0,0.23]
[1760214841376,0.1290684,110410.0,110400.0,0.4208]
[1760214841576,0.70970557,110410.0,110400.0,0.11]
[1760214841785,0.15318997,110410.0,110400.0,0.11]
[1760214841978,0.51398997,110410.0,110400.0,0.11]
[1760214842179,1.09462714,110410.0,110400.0,0.11]
[1760214842687,0.51398997,110410.0,110400.0,0.11]
[1760214842979,0.49748861,110410.0,110400.0,0.11]
[1760214843180,1.16860418,110410.0,110400.0,0.11]
[1760214843380,1.56860418,110410.0,110400.0,0.11]
[1760214843579,1.66852267,110410.0,110400.0,0.10590231]
[1760214844082,1.66852267,110410.0,110380.0,0.08]
[1760214844083,0.03718,110380.0,110370.0,0.37088]
[1760214844283,0.03718,110380.0,110370.0,0.61088]
[1760214844784,0.03718,110380.0,110370.0,0.7013912]
[1760214844976,0.03718,110380.0,110370.0,0.6008]
[1760214845179,0.39798,110380.0,110370.0,0.25008]
[1760214845582,0.39798,110380.0,110370.0,0.24]
[1760214845988,0.39798,110380.0,110370.0,0.25008]
[1760214846182,0.04623675,110380.0,110370.0,0.24]
[1760214846786,0.40703675,110380.0,110370.0,0.25008]
[1760214847089,0.04723675,110380.0,110370.0,0.25008]
[1760214847282,0.49853975,110380.0,110370.0,0.24]
[1760214847481,1.07917692,110380.0,110370.0,0.24]
[1760214847982,0.49853975,110380.0,110370.0,0.25008]
[1760214848182,0.40803675,110380.0,110370.0,0.24]
[1760214848483,1.07917692,110380.0,110370.0,0.24]
[1760214849283,0.1276913,110370.0,110360.0,9.387e-05]
[1760214849584,1.06912847,110370.0,110360.0,0.25009387]
[1760214849784,0.97861717,110370.0,110360.0,0.25009387]
[1760214849988,0.97861717,110370.0,110360.0,0.26017387]
[1760214850183,0.03718,110370.0,110360.0,0.26017387]
[1760214850489,0.61781717,110370.0,110360.0,0.26017387]
[1760214850688,0.03718,110370.0,110360.0,0.26017387]
[1760214851487,0.10854835,110370.0,110360.0,0.26017387]
[1760214851688,0.1276912,110370.0,110360.0,0.25009387]
[1760214852087,0.03718,110370.0,110360.0,0.25009387]
[1760214852291,0.1276912,110370.0,110360.0,0.25009387]
[1760214852584,0.70832837,110370.0,110360.0,0.25009387]
[1760214853086,0.61781717,110370.0,110360.0,0.26017387]
[1760214853288,0.1276913,110370.0,110360.0,0.25009387]
[1760214853493,0.70832847,110370.0,110360.0,0.25009387]
[1760214853689,0.37468,110380.0,110360.0,1.24081104]
[1760214853885,0.07397704,110410.0,110360.0,1.24081104]
[1760214853886,0.39798,110410.0,110390.0,0.0904878]
[1760214854091,0.03718,110410.0,110400.0,0.1005667]
[1760214854390,0.01388,110410.0,110400.0,0.7013667]
[1760214854785,0.1276585,110410.0,110400.0,0.25008]
[1760214854992,0.1276585,110410.0,110400.0,0.24]
[1760214854993,0.61781717,110410.0,110400.0,0.24]
[1760214855286,0.10935482,110410.0,110400.0,0.3405667]
[1760214855484,0.01388,110420.0,110410.0,0.1005585]
[1760214855687,0.37468,110430.0,110420.0,0.1005503]
[1760214855893,0.37468,110430.0,110420.0,0.3105503]
[1760214856089,0.37468,110440.0,110430.0,0.1005421]
[1760214856290,0.61781717,110440.0,110430.0,0.23008]
[1760214856495,0.39798,110440.0,110430.0,0.3205421]
[1760214856794,0.3608,110470.0,110430.0,1.21143717]
[1760214857088,0.01388,110490.0,110480.0,0.0904211]
[1760214857292,0.01388,110500.0,110480.0,0.91105827]
[1760214857592,0.37468,110510.0,110490.0,0.67105017]
[1760214857784,0.01388,110510.0,110490.0,0.88104807]
[1760214857988,0.01388,110510.0,110490.0,1.24184807]
[1760214858195,0.01388,110510.0,110490.0,0.6612109]
[1760214858196,0.37468,110510.0,110490.0,0.6612109]
[1760214858595,0.01388,110500.0,110490.0,0.21]
[1760214858789,0.37568,110510.0,110490.0,1.24185017]
[1760214858993,0.37568,110510.0,110500.0,0.0904048]
[1760214859192,0.01488,110510.0,110500.0,0.3304048]
[1760214859396,0.001,110510.0,110500.0,0.7304048]
[1760214859599,0.001,110510.0,110500.0,1.0912048]
[1760214859796,0.01488,110510.0,110500.0,0.3304048]
[1760214860000,0.59551717,110510.0,110500.0,0.24]
[1760214860298,0.01688,110510.0,110500.0,0.3304048]
[1760214860998,0.01588,110510.0,110500.0,0.3304048]
[1760214861195,0.01788,110510.0,110500.0,0.24]
[1760214861598,0.59851717,110510.0,110500.0,0.24]
[1760214861789,0.004,110510.0,110500.0,0.3304048]
[1760214861994,0.004,110510.0,110500.0,0.91104197]
[1760214862300,0.01788,110510.0,110500.0,0.3304048]
[1760214862690,0.004,110510.0,110500.0,0.3304048]
[1760214862894,0.01788,110510.0,110500.0,0.3304048]
[1760214863993,0.004,110510.0,110500.0,0.3304048]
[1760214864196,0.004,110510.0,110500.0,1.67814197]
[1760214865199,0.004,110510.0,110500.0,1.27814197]
[1760214865503,0.004,110510.0,110500.0,1.27184197]
[1760214867206,0.004,110510.0,110500.0,0.6912048]
[1760214867404,0.004,110510.0,110500.0,1.28192197]
[1760214867799,0.004,110510.0,110500.0,0.7012848]
[1760214868003,0.004,110510.0,110500.0,1.28192197]
[1760214868506,0.01788,110510.0,110500.0,0.61088]
[1760214868704,0.04118,110510.0,110500.0,0.61088]
[1760214868907,0.04118,110510.0,110500.0,0.7012848]
[1760214869805,0.01788,110510.0,110500.0,0.6912048]
[1760214870006,1.08891377,110510.0,110500.0,0.6008]
[1760214870206,0.41788,110510.0,110500.0,0.6008]
[1760214870704,0.41788,110510.0,110500.0,0.6912048]
[1760214870904,1.08891377,110510.0,110500.0,0.6008]
[1760214871104,1.44971377,110510.0,110500.0,0.24]
[1760214871505,0.01788,110510.0,110500.0,0.6912048]
[1760214872006,0.01788,110510.0,110500.0,0.6008]
[1760214872304,0.01788,110510.0,110500.0,0.61088]
[1760214872513,0.04131,110510.0,110500.0,0.7012848]
[1760214873401,0.004,110510.0,110500.0,0.7012848]
[1760214873711,0.004,110510.0,110500.0,1.1012848]
[1760214874108,0.0415,110510.0,110500.0,0.7012848]
[1760214874419,1.07333377,110510.0,110500.0,0.24]
[1760214874712,1.47333377,110510.0,110500.0,0.24]
[1760214875009,0.8023,110510.0,110500.0,0.24]
[1760214875209,1.47333377,110510.0,110500.0,0.24]
[1760214876810,0.4023,110510.0,110500.0,0.3385248]
[1760214877411,0.0415,110510.0,110500.0,0.6993248]
[1760214877710,0.01807,110510.0,110500.0,0.6993248]
[1760214878106,0.0415,110510.0,110500.0,0.6993248]
[1760214878506,0.01807,110510.0,110500.0,0.6993248]
[1760214878809,0.004,110510.0,110500.0,1.67996197]
[1760214879009,0.004,110510.0,110500.0,1.68504197]
[1760214880114,0.01388,110540.0,110530.0,0.0985002]
[1760214880314,0.03731,110540.0,110530.0,0.6793002]
[1760214880815,0.01388,110540.0,110530.0,0.6793002]
[1760214881315,0.01688,110540.0,110530.0,0.6793002]
[1760214881514,0.003,110540.0,110530.0,1.0793002]
[1760214881917,0.006,110540.0,110530.0,1.0793002]
[1760214882314,0.006,110540.0,110530.0,0.6793002]
[1760214883111,0.0435,110540.0,110530.0,0.6793002]
[1760214883509,0.1338721,110540.0,110530.0,0.58892]
[1760214883713,0.02007,110540.0,110530.0,0.6793002]
[1760214884020,0.006,110540.0,110530.0,0.6793002]
[1760214884320,0.006,110540.0,110530.0,1.59763225]
[1760214884508,0.1325821,110540.0,110530.0,0.5808]
[1760214884714,0.1039884,110520.0,110510.0,0.3608]
[1760214884916,0.1039884,110520.0,110510.0,0.5808]
[1760214885116,0.5278815,110520.0,110510.0,0.09]
[1760214885713,0.0374931,110520.0,110510.0,0.09]
[1760214885913,0.0136,110530.0,110510.0,0.5411966]
[1760214886115,0.004,110520.0,110510.0,0.5411966]
[1760214886524,0.004,110520.0,110510.0,0.9411966]
[1760214886823,0.004,110520.0,110510.0,1.45952865]
[1760214887119,0.004,110520.0,110510.0,0.9411966]
[1760214887316,0.002,110520.0,110510.0,0.5411966]
[1760214888119,0.002,110530.0,110520.0,0.0903836]
[1760214888321,0.0156,110530.0,110520.0,0.7011836]
[1760214888711,0.002,110530.0,110520.0,0.7011836]
[1760214888917,0.0136,110540.0,110520.0,0.7011836]
[1760214889219,0.03755219,110540.0,110520.0,0.7011836]
[1760214889419,0.12792549,110540.0,110520.0,0.7011836]
[1760214889721,0.0156,110530.0,110520.0,0.7085436]
[1760214890020,0.64692225,110530.0,110520.0,0.6108]
[1760214890219,0.67087444,110530.0,110520.0,0.25]
[1760214890420,0.51334239,110530.0,110520.0,0.25]
[1760214890618,0.51534239,110530.0,110520.0,0.25736]
[1760214890808,0.51534239,110530.0,110520.0,0.3477484]
[1760214890809,0.42496219,110530.0,110520.0,0.3477484]
[1760214891219,0.42296219,110530.0,110520.0,0.3477484]
[1760214891416,0.03955219,110530.0,110520.0,0.7085484]
[1760214891621,0.02595219,110530.0,110520.0,0.7085484]
[1760214892120,0.004,110530.0,110520.0,0.7085484]
[1760214893514,0.0176,110530.0,110520.0,0.7085484]
[1760214894521,0.1305902,110530.0,110520.0,0.7085484]
[1760214894721,0.15454436,110530.0,110520.0,0.61816]
[1760214895524,0.06416416,110530.0,110520.0,0.7085484]
[1760214895922,0.04155416,110530.0,110520.0,0.7085484]
[1760214896120,0.0176,110530.0,110520.0,0.7085484]
[1760214897126,0.04155471,110530.0,110520.0,0.7085484]
[1760214897629,0.0176,110530.0,110520.0,0.7085484]
[1760214897832,0.004,110530.0,110520.0,1.1085484]
[1760214898126,0.004,110530.0,110520.0,1.63148045]
[1760214898329,0.004,110530.0,110520.0,1.1131484]
[1760214899424,0.004,110530.0,110520.0,1.12197928]
[1760214900626,0.4647567,110560.0,110550.0,0.00096]
[1760214900827,0.51108641,110560.0,110550.0,0.24]
[1760214901030,1.02941846,110560.0,110550.0,0.24]
[1760214901828,1.43241846,110560.0,110550.0,0.24]
[1760214902223,0.91408541,110560.0,110550.0,0.24096]
[1760214902625,0.94206176,110560.0,110550.0,0.24096]
[1760214902924,0.06592971,110560.0,110550.0,0.3313239]
[1760214903122,0.02971971,110560.0,110550.0,0.6921239]
[1760214903326,1e-08,110560.0,110550.0,1.61045595]
[1760214903628,1e-08,110560.0,110550.0,0.6921239]
[1760214904017,1e-08,110560.0,110550.0,1.0921239]
[1760214904418,0.03651,110580.0,110570.0,0.0903451]
[1760214904623,0.03651,110580.0,110570.0,1.0519451]
[1760214904823,0.03651,110580.0,110570.0,0.24]
[1760214905023,0.03651,110580.0,110570.0,0.6008]
[1760214905229,0.03651,110580.0,110570.0,0.24]
[1760214905528,0.03651,110580.0,110570.0,0.6008]
[1760214906329,0.03651,110580.0,110570.0,0.24]
[1760214906524,0.39731,110580.0,110570.0,0.24]
[1760214907030,0.04051,110580.0,110570.0,0.24]
[1760214907729,0.04051,110580.0,110570.0,0.6008]
[1760214907929,0.04051,110580.0,110570.0,0.24]
[1760214908128,0.04051,110580.0,110570.0,0.6008]
[1760214908621,0.04051,110580.0,110570.0,0.6911475]
[1760214909424,0.03871253,110580.0,110570.0,0.6938475]
[1760214909628,0.01735,110580.0,110570.0,0.6938475]
[1760214910029,0.04051,110580.0,110570.0,0.6938475]
[1760214911030,0.01735,110580.0,110570.0,0.6938475]
[1760214911431,0.04051,110580.0,110570.0,0.2427]
[1760214911632,0.04051,110580.0,110570.0,0.6035]
[1760214911832,0.04051,110580.0,110570.0,0.2427]
[1760214912031,0.40131,110580.0,110570.0,0.2427]
[1760214913829,0.40131,110580.0,110570.0,0.3330475]
[1760214914132,0.04051,110580.0,110570.0,0.6938475]
[1760214914333,0.01735,110580.0,110570.0,0.6938475]
[1760214914535,0.004,110580.0,110570.0,1.61217955]
[1760214914931,0.004,110580.0,110570.0,1.10288631]
[1760214915836,0.03872606,110580.0,110570.0,1.0938475]
[1760214916032,0.02537606,110580.0,110570.0,1.0938475]
[1760214916331,0.004,110580.0,110570.0,1.0938475]
[1760214917139,0.02537606,110580.0,110570.0,1.0938475]
[1760214917437,0.06188606,110580.0,110570.0,0.6938475]
[1760214918240,0.03872606,110580.0,110570.0,0.6938475]
[1760214918639,0.06188606,110580.0,110570.0,0.6938475]
[1760214919443,0.01735,110580.0,110570.0,0.6938475]
[1760214919644,0.02537606,110580.0,110570.0,0.6938475]
[1760214919843,0.06188606,110580.0,110570.0,0.6938475]